bitfinex/quotes_BTCUSD_20240819
["timestamp","ask_amount","ask_price","bid_price","bid_amount"]
[1724026337462,0.001,58410.0,58409.0,0.01702]
[1724026337723,0.001,58410.0,58409.0,0.01902]
[1724026337929,0.001,58410.0,58409.0,0.378553]
[1724026338159,0.4095,58421.0,58410.0,0.0029994]
[1724026338371,0.09948182,58443.0,58410.0,0.0029994]
[1724026338372,0.1879,58433.0,58420.0,0.239642]
[1724026338577,0.23956,58441.0,58427.0,0.359422]
[1724026338786,0.000822,58446.0,58421.0,0.1240642]
[1724026338787,0.83697,58438.0,58421.0,0.1240642]
[1724026338989,0.119802,58430.0,58425.0,0.11981]
[1724026339214,0.717185,58438.0,58427.0,0.599037]
[1724026339431,0.717185,58438.0,58427.0,0.699037]
[1724026339432,0.11979,58436.0,58427.0,0.699037]
[1724026339643,0.119797,58432.0,58427.0,0.219807]
[1724026339937,0.83697,58438.0,58427.0,0.219807]
[1724026339938,0.5974,58438.0,58427.0,0.7449803]
[1724026340155,0.5974,58438.0,58427.0,0.938652]
[1724026340377,0.5974,58438.0,58427.0,0.9416514]
[1724026340601,0.5974,58438.0,58427.0,0.950652]
[1724026340602,0.001822,58428.0,58427.0,0.950652]
[1724026340801,0.001822,58428.0,58427.0,1.297252]
[1724026341018,0.002822,58428.0,58427.0,1.3072514]
[1724026341230,0.001822,58428.0,58427.0,1.297252]
[1724026341654,0.002822,58428.0,58427.0,1.311252]
[1724026342313,0.002822,58428.0,58427.0,3.24040654]
[1724026342533,0.002822,58428.0,58427.0,1.74040654]
[1724026342986,0.002822,58428.0,58427.0,2.24763594]
[1724026343408,0.000822,58428.0,58427.0,2.23363594]
[1724026343662,0.001822,58428.0,58427.0,2.24763594]
[1724026343889,0.001822,58428.0,58427.0,2.00802094]
[1724026344086,0.000822,58428.0,58427.0,1.98402094]
[1724026344290,0.001822,58428.0,58427.0,2.02202094]
[1724026344416,0.001822,58428.0,58427.0,2.01801427]
[1724026344622,0.000822,58428.0,58427.0,2.00401427]
[1724026344832,0.001822,58428.0,58427.0,2.01801427]
[1724026345042,0.001822,58428.0,58427.0,2.00401427]
[1724026346057,0.001822,58428.0,58427.0,2.01801427]
[1724026346471,0.002822,58428.0,58427.0,2.01801427]
[1724026346882,0.002822,58428.0,58427.0,2.03201427]
[1724026347097,0.000822,58428.0,58427.0,2.01401487]
[1724026347339,0.000822,58428.0,58427.0,1.99721487]
[1724026347541,0.001822,58428.0,58427.0,2.01121487]
[1724026347747,0.001822,58428.0,58427.0,3.52921427]
[1724026347952,0.197722,58446.0,58427.0,3.52921427]
[1724026347953,0.000822,58446.0,58445.0,1.0809334]
[1724026348168,0.000822,58446.0,58445.0,1.7971334]
[1724026348798,0.000822,58446.0,58445.0,1.96568854]
[1724026349468,0.000822,58451.0,58445.0,1.96568854]
[1724026349469,0.000822,58451.0,58450.0,1.0828394]
[1724026349674,0.000822,58451.0,58450.0,1.63199454]
[1724026349928,0.000822,58451.0,58450.0,3.47151454]
[1724026350153,0.1955,58475.0,58457.0,0.0049994]
[1724026350355,0.000822,58476.0,58457.0,1.89346794]
[1724026350557,0.000822,58476.0,58457.0,1.99346794]
[1724026350774,0.000822,58476.0,58475.0,0.837963]
[1724026350984,0.000822,58476.0,58475.0,1.195563]
[1724026351188,0.000822,58476.0,58475.0,1.4379804]
[1724026351816,0.000822,58476.0,58475.0,2.934981]
[1724026352216,0.000822,58476.0,58475.0,3.10653554]
[1724026352424,0.000822,58476.0,58475.0,3.12953554]
[1724026352639,0.000822,58476.0,58475.0,3.12353494]
[1724026353049,0.000822,58476.0,58475.0,2.87011694]
[1724026353259,0.000822,58476.0,58475.0,2.88411694]
[1724026353455,0.000822,58476.0,58475.0,2.89811694]
[1724026353659,0.000822,58476.0,58475.0,2.89511754]
[1724026354065,0.000822,58476.0,58475.0,0.9689624]
[1724026354342,0.000822,58476.0,58475.0,0.965963]
[1724026354751,0.000822,58476.0,58475.0,0.9689624]
[1724026355012,0.000822,58476.0,58475.0,0.965963]
[1724026355217,0.000822,58476.0,58475.0,0.726545]
[1724026355373,0.196322,58476.0,58475.0,0.387127]
[1724026355574,0.196322,58476.0,58475.0,0.626545]
[1724026356350,0.196322,58476.0,58475.0,0.612545]
[1724026356666,0.196322,58476.0,58475.0,0.721545]
[1724026357182,0.196322,58476.0,58475.0,0.698545]
[1724026357386,0.196322,58476.0,58475.0,0.712545]
[1724026357593,0.000822,58476.0,58475.0,0.964963]
[1724026357801,0.000822,58476.0,58475.0,0.949963]
[1724026358697,0.000822,58476.0,58475.0,0.9529624]
[1724026358920,0.000822,58476.0,58475.0,0.9409624]
[1724026359120,0.000822,58476.0,58475.0,0.9549624]
[1724026359507,0.000822,58476.0,58475.0,0.951963]
[1724026360266,0.000822,58476.0,58475.0,0.965963]
[1724026360929,0.414522,58476.0,58475.0,0.487127]
[1724026361103,0.594922,58476.0,58475.0,0.487127]
[1724026361498,0.594922,58476.0,58475.0,0.147709]
[1724026361699,0.594922,58476.0,58475.0,0.028]
[1724026361899,0.594922,58476.0,58475.0,0.147709]
[1724026362146,0.594922,58476.0,58475.0,0.028]
[1724026362635,0.714629,58476.0,58475.0,0.028]
[1724026362990,0.594922,58476.0,58475.0,0.028]
[1724026363395,0.594922,58476.0,58475.0,0.147709]
[1724026363742,0.594922,58476.0,58475.0,0.1584227]
[1724026363943,0.594922,58476.0,58475.0,0.1764227]
[1724026364362,0.594922,58476.0,58475.0,0.1674227]
[1724026364564,0.594922,58476.0,58475.0,0.009]
[1724026365403,0.594922,58476.0,58475.0,0.128709]
[1724026365613,0.594922,58476.0,58475.0,0.137709]
[1724026366032,0.594922,58476.0,58475.0,0.128709]
[1724026366424,0.594922,58476.0,58475.0,0.009]
[1724026366635,0.594922,58476.0,58475.0,0.02]
[1724026367033,0.594922,58476.0,58475.0,0.009]
[1724026367242,0.000822,58476.0,58475.0,2.02204944]
[1724026367451,0.000822,58476.0,58475.0,2.04504944]
[1724026367661,0.000822,58476.0,58475.0,2.04004884]
[1724026367865,0.000822,58476.0,58475.0,3.55104884]
[1724026368068,0.000822,58476.0,58475.0,3.56136596]
[1724026368271,0.000822,58476.0,58475.0,3.54136596]
[1724026368482,0.000822,58476.0,58475.0,3.53736656]
[1724026368766,0.000822,58476.0,58475.0,3.55236596]
[1724026369129,0.000822,58476.0,58475.0,3.53736656]
[1724026369474,0.000822,58476.0,58475.0,3.56336656]
[1724026369675,0.000822,58476.0,58475.0,3.55536596]
[1724026370299,0.000822,58476.0,58475.0,3.55136656]
[1724026370500,0.000822,58476.0,58475.0,3.53736656]
[1724026370700,0.000822,58476.0,58475.0,3.55136656]
[1724026371124,0.000822,58476.0,58475.0,3.55536596]
[1724026371771,0.000822,58476.0,58475.0,3.56736596]
[1724026371980,0.000822,58476.0,58475.0,0.97628012]
[1724026372181,0.000822,58476.0,58475.0,0.97728012]
[1724026372387,0.000822,58476.0,58475.0,0.97927952]
[1724026372792,0.000822,58476.0,58475.0,0.96527952]
[1724026372995,0.000822,58476.0,58475.0,0.96228012]
[1724026373195,0.000822,58476.0,58475.0,0.97628012]
[1724026373552,0.000822,58476.0,58475.0,0.96527952]
[1724026374158,0.000822,58476.0,58475.0,1.20469752]
[1724026374357,0.000822,58476.0,58475.0,1.20169812]
[1724026374956,0.000822,58476.0,58475.0,1.20469752]
[1724026375159,0.000822,58476.0,58475.0,1.20169812]
[1724026375359,0.000822,58476.0,58475.0,0.951963]
[1724026375360,0.192522,58476.0,58475.0,0.951963]
[1724026375565,0.192522,58476.0,58475.0,0.387127]
[1724026375790,0.595622,58476.0,58475.0,0.147709]
[1724026375964,0.595622,58476.0,58475.0,0.387127]
[1724026376165,0.595622,58476.0,58475.0,0.147709]
[1724026376373,0.595622,58476.0,58475.0,0.014]
[1724026376576,0.595622,58476.0,58471.0,0.239433]
[1724026376818,0.595622,58476.0,58475.0,0.014]
[1724026377157,0.595622,58476.0,58472.0,0.23943]
[1724026377357,0.595622,58476.0,58475.0,0.014]
[1724026377809,0.595622,58476.0,58475.0,0.373127]
[1724026378354,0.595622,58476.0,58475.0,0.387127]
[1724026378714,0.595622,58476.0,58475.0,0.373127]
[1724026378917,0.595622,58476.0,58475.0,0.387127]
[1724026379124,0.595622,58476.0,58475.0,0.147709]
[1724026379454,0.595622,58476.0,58475.0,0.028]
[1724026379658,0.595622,58476.0,58475.0,0.147709]
[1724026380224,0.595622,58476.0,58475.0,0.028]
[1724026380428,0.595622,58476.0,58475.0,0.147709]
[1724026380629,0.595622,58476.0,58475.0,0.626545]
[1724026380835,0.595622,58476.0,58475.0,0.865963]
[1724026380991,0.000822,58476.0,58475.0,0.865963]
[1724026381205,0.000822,58476.0,58475.0,0.9689624]
[1724026381623,0.000822,58476.0,58475.0,2.465963]
[1724026381958,0.000822,58476.0,58475.0,2.451963]
[1724026382109,0.000822,58476.0,58475.0,2.4549624]
[1724026382323,0.000822,58476.0,58475.0,3.14470471]
[1724026382516,0.000822,58476.0,58475.0,3.48930471]
[1724026382982,0.000822,58476.0,58475.0,3.72972271]
[1724026383195,0.000822,58476.0,58475.0,3.75272271]
[1724026383399,0.000822,58478.0,58477.0,1.436945]
[1724026383563,0.000822,58478.0,58477.0,1.97090954]
[1724026383764,0.000822,58478.0,58477.0,1.97490894]
[1724026383992,0.000822,58478.0,58477.0,1.73349894]
[1724026384350,0.000822,58478.0,58477.0,1.73149954]
[1724026384812,0.000822,58478.0,58477.0,1.97090954]
[1724026385206,0.000822,58478.0,58477.0,1.73549894]
[1724026386200,0.00822,58485.0,58484.0,1.0802134]
[1724026386419,0.00822,58486.0,58485.0,0.6216644]
[1724026386621,0.00822,58486.0,58485.0,1.76972754]
[1724026386819,0.00822,58486.0,58485.0,1.63434994]
[1724026387880,0.00822,58486.0,58485.0,1.86972754]
[1724026388088,0.00822,58486.0,58485.0,1.64834994]
[1724026388504,0.00822,58486.0,58485.0,1.62334994]
[1724026388709,0.00822,58486.0,58485.0,1.62035054]
[1724026389113,0.00822,58486.0,58485.0,1.62334994]
[1724026389553,0.00822,58486.0,58485.0,1.62035054]
[1724026389764,0.00822,58486.0,58485.0,3.10635054]
[1724026390191,0.00822,58486.0,58485.0,3.12035054]
[1724026390459,0.00822,58486.0,58485.0,3.74250077]
[1724026390679,0.00822,58486.0,58485.0,3.77050077]
[1724026390878,0.00821,58505.0,58485.0,3.77050077]
[1724026390879,0.00821,58505.0,58486.0,1.6801504]
[1724026391089,0.00821,58505.0,58486.0,1.97070554]
[1724026391299,0.00821,58505.0,58492.0,1.6800134]
[1724026391534,0.00821,58505.0,58504.0,0.358948]
[1724026391737,0.00821,58505.0,58504.0,1.36969994]
[1724026391968,0.01599323,58505.0,58504.0,1.60899894]
[1724026392178,0.00821,58505.0,58504.0,1.62899954]
[1724026392382,0.00821,58505.0,58504.0,1.63399894]
[1724026392591,0.00821,58505.0,58504.0,3.13399894]
[1724026392774,0.00821,58505.0,58504.0,3.37329794]
[1724026392991,0.00821,58505.0,58504.0,3.13998043]
[1724026393501,0.00821,58505.0,58504.0,3.16798043]
[1724026393703,0.00821,58505.0,58504.0,3.15398043]
[1724026393898,0.00821,58505.0,58504.0,3.16798043]
[1724026394106,0.00821,58505.0,58504.0,3.15398043]
[1724026394931,0.00821,58505.0,58504.0,3.39727883]
[1724026395136,0.00822,58509.0,58508.0,1.0817724]
[1724026395364,0.00822,58509.0,58508.0,1.73492694]
[1724026395780,0.00822,58509.0,58508.0,1.73092754]
[1724026395978,0.00822,58509.0,58508.0,1.73492694]
[1724026396187,0.00822,58509.0,58508.0,3.23292694]
[1724026396397,0.00822,58509.0,58508.0,2.87432694]
[1724026396586,0.00822,58509.0,58508.0,2.88832694]
[1724026397459,0.00822,58509.0,58508.0,2.88532754]
[1724026397897,0.00822,58509.0,58508.0,2.88832694]
[1724026398122,0.00822,58509.0,58508.0,2.88532754]
[1724026398338,0.00822,58509.0,58508.0,3.12561054]
[1724026398533,0.10444,58523.0,58522.0,0.6010644]
[1724026398742,0.10444,58523.0,58522.0,0.7010644]
[1724026398964,0.11237078,58523.0,58522.0,0.9402904]
[1724026399203,0.10444,58523.0,58522.0,0.9402904]
[1724026399919,0.10444,58523.0,58522.0,0.712065]
[1724026400156,0.48264,58523.0,58522.0,0.30768133]
[1724026400366,0.48264,58523.0,58522.0,0.472839]
[1724026400565,0.49066313,58523.0,58522.0,0.247613]
[1724026400777,0.49066313,58523.0,58522.0,0.486839]
[1724026400982,0.49066313,58523.0,58522.0,0.726065]
[1724026401185,0.49066313,58523.0,58522.0,0.951291]
[1724026401396,0.49066313,58523.0,58522.0,0.9682904]
[1724026401608,0.49148413,58523.0,58522.0,0.9682904]
[1724026401839,0.49148413,58523.0,58522.0,0.951291]
[1724026402049,0.49148413,58523.0,58522.0,0.965291]
[1724026402491,0.00884413,58523.0,58522.0,1.12284554]
[1724026402703,0.00884413,58523.0,58522.0,1.37607154]
[1724026402908,0.00884413,58523.0,58522.0,0.88661894]
[1724026402909,0.000821,58523.0,58522.0,0.88661894]
[1724026403112,0.000821,58523.0,58522.0,0.88361954]
[1724026403359,0.000821,58523.0,58522.0,0.89761954]
[1724026403570,0.000821,58523.0,58522.0,0.90061894]
[1724026403786,0.000821,58523.0,58522.0,0.88661894]
[1724026403998,0.000821,58523.0,58522.0,0.89761954]
[1724026404425,0.000821,58523.0,58522.0,2.39761954]
[1724026404661,0.000821,58523.0,58522.0,2.40061894]
[1724026405358,0.000821,58523.0,58522.0,2.76121894]
[1724026405571,0.000821,58523.0,58522.0,2.78421894]
[1724026405789,0.000821,58523.0,58522.0,2.42361894]
[1724026406022,0.000821,58523.0,58522.0,3.28104494]
[1724026406234,0.000821,58523.0,58522.0,3.02344494]
[1724026406687,0.000821,58523.0,58522.0,2.66484494]
[1724026406909,0.000821,58523.0,58522.0,2.65084494]
[1724026407120,0.000821,58523.0,58522.0,2.64684554]
[1724026407328,0.000821,58523.0,58522.0,3.14367154]
[1724026407531,0.000821,58523.0,58522.0,3.15767154]
[1724026407731,0.000821,58523.0,58522.0,3.14367154]
[1724026408162,0.000821,58523.0,58522.0,2.90407094]
[1724026408537,0.000821,58523.0,58522.0,3.14367154]
[1724026408748,0.000821,58523.0,58522.0,2.88607154]
[1724026408945,0.000821,58523.0,58522.0,3.15767154]
[1724026409290,0.00821,58545.0,58544.0,0.836976]
[1724026409496,0.00821,58545.0,58544.0,1.39412994]
[1724026409714,0.3765,58557.0,58556.0,0.598717]
[1724026409915,0.3765,58557.0,58556.0,1.36895794]
[1724026410323,0.3765,58557.0,58556.0,1.60804494]
[1724026410556,0.3765,58557.0,58556.0,1.60504554]
[1724026411145,0.3765,58557.0,58556.0,1.61904554]
[1724026411559,0.188,58560.0,58557.0,1.0788724]
[1724026411715,0.188,58560.0,58557.0,1.35042694]
[1724026411918,0.188,58560.0,58557.0,0.9397894]
[1724026412539,0.188,58560.0,58557.0,0.93679]
[1724026412749,0.188,58560.0,58557.0,1.35042694]
[1724026412952,0.38471,58564.0,58557.0,1.38842694]
[1724026413157,0.38471,58564.0,58557.0,1.36442694]
[1724026413384,0.38471,58564.0,58557.0,1.36142754]
[1724026413587,0.38471,58564.0,58557.0,1.36442694]
[1724026413885,0.38471,58564.0,58557.0,1.37542754]
[1724026414083,0.00821,58564.0,58557.0,1.40342694]
[1724026414286,0.00821,58564.0,58557.0,1.38742694]
[1724026414863,0.00821,58564.0,58557.0,1.36442694]
[1724026415063,0.00821,58564.0,58557.0,1.36142754]
[1724026415266,0.00821,58564.0,58557.0,1.36442694]
[1724026415713,0.00821,58564.0,58557.0,2.85042694]
[1724026415917,0.00821,58564.0,58557.0,2.87842694]
[1724026416333,0.00821,58564.0,58557.0,2.84742754]
[1724026416538,0.00821,58564.0,58557.0,2.88542754]
[1724026416780,0.00821,58564.0,58557.0,2.89942754]
[1724026417695,0.00821,58564.0,58557.0,2.88942694]
[1724026418711,0.00821,58564.0,58557.0,2.87542694]
[1724026418922,0.00821,58564.0,58557.0,3.11450994]
[1724026419129,0.00821,58564.0,58557.0,3.12850994]
[1724026419367,0.00821,58564.0,58557.0,3.11450994]
[1724026419598,0.095,58558.0,58557.0,3.11450994]
[1724026419843,0.095,58558.0,58557.0,3.22520994]
[1724026420051,0.095,58558.0,58557.0,3.22121054]
[1724026420258,0.095,58558.0,58557.0,3.21120994]
[1724026420461,0.095,58558.0,58557.0,3.20721054]
[1724026420684,0.095,58558.0,58557.0,3.22520994]
[1724026421300,0.095,58558.0,58557.0,3.12850994]
[1724026421515,0.095,58558.0,58557.0,2.90342694]
[1724026421940,0.095,58558.0,58557.0,3.12451054]
[1724026422445,0.095,58558.0,58557.0,2.90142694]
[1724026422647,0.095,58558.0,58557.0,2.88442754]
[1724026423069,0.095,58558.0,58557.0,2.88542754]
[1724026423289,0.095,58558.0,58557.0,2.88942694]
[1724026423705,0.095,58558.0,58557.0,2.90342694]
[1724026423916,0.095,58558.0,58557.0,2.87542694]
[1724026424118,0.095,58558.0,58557.0,2.87342694]
[1724026424323,0.095,58558.0,58557.0,2.87142754]
[1724026424532,0.095,58558.0,58557.0,2.87542694]
[1724026424737,0.09582,58558.0,58557.0,2.88942694]
[1724026425166,0.09582,58558.0,58557.0,3.12850994]
[1724026425313,0.09582,58558.0,58557.0,3.48710994]
[1724026425528,0.09582,58558.0,58557.0,3.48311054]
[1724026425791,0.09582,58558.0,58557.0,3.49711054]
[1724026425993,0.09582,58558.0,58557.0,3.48311054]
[1724026426166,0.09582,58558.0,58557.0,3.46911054]
[1724026426366,0.09582,58558.0,58557.0,3.48311054]
[1724026426570,0.09582,58558.0,58557.0,3.50110994]
[1724026427231,0.09582,58558.0,58557.0,3.48710994]
[1724026427633,0.09582,58558.0,58557.0,3.25802754]
[1724026427950,0.09582,58558.0,58557.0,3.24802694]
[1724026428148,0.09582,58558.0,58557.0,2.87542694]
[1724026428390,0.09582,58558.0,58557.0,2.88942694]
[1724026428815,0.39582,58558.0,58557.0,3.12850994]
[1724026429159,0.39582,58558.0,58557.0,3.19291354]
[1724026429360,0.39582,58558.0,58557.0,3.20691354]
[1724026429979,0.39582,58558.0,58557.0,3.21091294]
[1724026430268,0.39582,58558.0,58557.0,2.97182994]
[1724026431356,0.39582,58558.0,58557.0,3.21091294]
[1724026432208,0.39582,58558.0,58557.0,3.65221294]
[1724026432414,0.39582,58558.0,58557.0,3.64821354]
[1724026432629,0.00821,58564.0,58563.0,1.2834604]
[1724026432863,0.00821,58564.0,58563.0,1.57501554]
[1724026433295,0.00821,58564.0,58563.0,3.07501554]
[1724026433503,0.00821,58564.0,58563.0,3.07801494]
[1724026433722,0.00821,58564.0,58563.0,3.07501554]
[1724026433947,0.00821,58564.0,58563.0,3.09201494]
[1724026434154,0.00821,58564.0,58563.0,3.08901554]
[1724026434571,0.00821,58564.0,58563.0,3.09201494]
[1724026435220,0.00821,58564.0,58563.0,3.10601494]
[1724026436045,0.00821,58564.0,58563.0,3.10301554]
[1724026436253,0.00821,58564.0,58563.0,3.34207354]
[1724026436385,0.00821,58564.0,58563.0,3.34507294]
[1724026437214,0.00821,58564.0,58563.0,3.10601494]
[1724026439111,0.00821,58564.0,58563.0,3.09201494]
[1724026439226,0.00821,58564.0,58563.0,3.10601494]
[1724026439627,0.00821,58564.0,58563.0,3.07801494]
[1724026439863,0.38631,58564.0,58563.0,1.57801494]
[1724026440071,0.38631,58564.0,58563.0,1.59201494]
[1724026440284,0.38631,58564.0,58563.0,3.09201494]
[1724026440642,0.38631,58564.0,58563.0,1.35031494]
[1724026440643,0.58561,58564.0,58563.0,1.35031494]
[1724026440821,0.58561,58564.0,58563.0,1.24731554]
[1724026441061,0.58561,58564.0,58563.0,1.26131554]
[1724026441468,0.58561,58564.0,58563.0,1.26431494]
[1724026441908,0.58561,58564.0,58563.0,1.30131494]
[1724026442330,0.58561,58564.0,58563.0,1.3975623]
[1724026442550,0.58561,58564.0,58563.0,1.2550333]
[1724026442756,0.58561,58564.0,58563.0,1.3715629]
[1724026443160,0.58561,58564.0,58563.0,1.3605623]
[1724026443361,0.58561,58564.0,58563.0,1.3745623]
[1724026443772,0.58561,58564.0,58563.0,1.3605623]
[1724026443981,0.58561,58564.0,58563.0,1.3835623]
[1724026444185,0.58561,58564.0,58563.0,1.3975623]
[1724026444391,0.58561,58564.0,58563.0,1.6336209]
[1724026444597,0.58561,58564.0,58563.0,1.6476209]
[1724026444844,0.58561,58564.0,58563.0,3.1196209]
[1724026445243,0.00821,58564.0,58563.0,3.1336209]
[1724026445454,0.00821,58564.0,58563.0,3.1226203]
[1724026445784,0.00821,58564.0,58563.0,3.1366203]
[1724026446007,0.00821,58564.0,58563.0,3.1336209]
[1724026446217,0.00821,58564.0,58563.0,3.1366203]
[1724026446645,0.00821,58564.0,58563.0,3.1506203]
[1724026447270,0.00821,58564.0,58563.0,3.3726789]
[1724026447479,0.00821,58564.0,58563.0,3.3756783]
[1724026447687,0.00821,58564.0,58563.0,3.3896783]
[1724026448350,0.00821,58564.0,58563.0,3.3866789]
[1724026449017,0.00821,58564.0,58563.0,3.3905803]
[1724026449959,0.00821,58564.0,58563.0,3.3875809]
[1724026451171,0.00821,58564.0,58563.0,3.3905803]
[1724026451378,0.18262,58568.0,58567.0,1.314731]
[1724026451578,0.18262,58568.0,58567.0,1.58628554]
[1724026452095,0.18262,58568.0,58567.0,3.08628554]
[1724026452306,0.00142,58568.0,58567.0,3.76662754]
[1724026452517,0.1924,58585.0,58581.0,1.0784314]
[1724026452715,0.3982,58582.0,58581.0,1.041147]
[1724026452962,0.5897,58582.0,58581.0,0.836447]
[1724026453171,0.5897,58582.0,58581.0,0.936447]
[1724026453769,0.5897,58582.0,58581.0,0.937447]
[1724026454370,0.5897,58582.0,58581.0,0.951447]
[1724026454568,0.5897,58582.0,58581.0,0.965447]
[1724026454791,0.5897,58582.0,58581.0,0.951447]
[1724026454993,0.5897,58582.0,58581.0,1.176432]
[1724026455147,0.5897,58582.0,58581.0,0.96150135]
[1724026455647,0.5897,58582.0,58581.0,0.97750075]
[1724026455851,0.5897,58582.0,58581.0,2.47750075]
[1724026456056,0.5897,58582.0,58581.0,2.71648575]
[1724026456703,0.5897,58582.0,58581.0,2.69948635]
[1724026456916,0.5897,58582.0,58581.0,2.68848575]
[1724026457137,0.5897,58582.0,58581.0,2.68548635]
[1724026457337,0.5897,58582.0,58581.0,2.68848575]
[1724026457545,0.5897,58582.0,58581.0,2.71648575]
[1724026457972,0.5897,58582.0,58581.0,2.70248575]
[1724026458824,0.5897,58582.0,58581.0,1.21648575]
[1724026459238,0.5897,58582.0,58581.0,2.71648575]
[1724026459842,0.5897,58582.0,58581.0,2.88504089]
[1724026460041,0.5897,58582.0,58581.0,2.87104089]
[1724026460275,0.5897,58582.0,58581.0,2.88504089]
[1724026460678,0.5897,58582.0,58581.0,2.85704089]
[1724026460879,0.5897,58582.0,58581.0,2.86004029]
[1724026461182,0.5897,58582.0,58581.0,2.88804029]
[1724026461365,0.5897,58582.0,58581.0,2.87104089]
[1724026461496,0.5897,58582.0,58581.0,2.85704089]
[1724026461712,0.5897,58582.0,58581.0,2.87104089]
[1724026462267,0.5897,58582.0,58581.0,2.88804029]
[1724026462475,0.5897,58582.0,58581.0,2.88504089]
[1724026462887,0.0082,58582.0,58581.0,3.12402589]
[1724026463113,0.0082,58582.0,58581.0,2.88804029]
[1724026463322,0.0082,58582.0,58581.0,2.87404029]
[1724026463528,0.0082,58582.0,58581.0,3.33501089]
[1724026463741,0.0082,58582.0,58581.0,3.13302589]
[1724026463991,0.0082,58582.0,58581.0,3.14702589]
[1724026464197,0.0082,58582.0,58581.0,3.12202529]
[1724026464401,0.0082,58582.0,58581.0,3.15002529]
[1724026464611,0.0082,58582.0,58581.0,3.15202529]
[1724026464827,0.0082,58582.0,58581.0,3.57532589]
[1724026465011,0.0082,58582.0,58581.0,3.57932529]
[1724026465221,0.0082,58582.0,58581.0,3.57532589]
[1724026465355,0.0082,58582.0,58581.0,3.62643934]
[1724026465565,0.0082,58582.0,58581.0,3.63043874]
[1724026465764,0.0082,58582.0,58581.0,3.18913874]
[1724026466000,0.0082,58582.0,58581.0,3.13802529]
[1724026466977,0.0082,58582.0,58581.0,3.13402589]
[1724026467190,0.0082,58582.0,58581.0,3.13802529]
[1724026467403,0.0082,58582.0,58581.0,3.15202529]
[1724026467606,0.0082,58582.0,58581.0,3.13802529]
[1724026468030,0.0082,58582.0,58581.0,3.15202529]
[1724026468388,0.0082,58582.0,58581.0,2.91104029]
[1724026468389,0.1988,58582.0,58581.0,2.91104029]
[1724026468805,0.1988,58582.0,58581.0,3.14702589]
[1724026469010,0.1988,58582.0,58581.0,2.91104029]
[1724026469233,0.1988,58582.0,58581.0,2.89704029]
[1724026469842,0.1988,58582.0,58581.0,2.90804089]
[1724026470045,0.1988,58582.0,58581.0,2.89704029]
[1724026470460,0.1988,58582.0,58581.0,2.91104029]
[1724026470787,0.0082,58582.0,58581.0,2.90804089]
[1724026470987,0.0082,58582.0,58581.0,2.91104029]
[1724026471191,0.0082,58582.0,58581.0,2.90904089]
[1724026471432,0.0082,58582.0,58581.0,3.15202529]
[1724026472051,0.0082,58582.0,58581.0,3.14802589]
[1724026472463,0.0082,58582.0,58581.0,3.13402589]
[1724026472687,0.0082,58582.0,58581.0,3.13802529]
[1724026473114,0.0032,58582.0,58581.0,3.13802529]
[1724026473322,0.0032,58582.0,58581.0,3.12002589]
[1724026473542,0.0032,58582.0,58581.0,3.13802529]
[1724026473744,0.0032,58582.0,58581.0,3.13402589]
[1724026473946,0.0032,58582.0,58581.0,3.14802589]
[1724026474149,0.0032,58582.0,58581.0,3.15202529]
[1724026475175,0.0032,58582.0,58581.0,2.91304029]
[1724026475798,0.0032,58582.0,58581.0,3.15202529]
[1724026476200,0.0032,58582.0,58581.0,3.14802589]
[1724026476587,0.0032,58582.0,58581.0,3.13402589]
[1724026476787,0.0032,58582.0,58581.0,3.12002589]
[1724026477016,0.0032,58582.0,58581.0,3.13802529]
[1724026477220,0.0032,58582.0,58581.0,3.14802589]
[1724026477426,0.0032,58582.0,58581.0,3.13802529]
[1724026478064,0.5862,58591.0,58590.0,0.001]
[1724026478266,0.0117742,58600.0,58599.0,0.3613654]
[1724026478476,0.0117742,58600.0,58599.0,1.11123554]
[1724026478682,0.0117742,58600.0,58599.0,1.21123554]
[1724026478884,0.0117742,58600.0,58599.0,2.71423494]
[1724026479092,0.0117742,58600.0,58599.0,2.71123554]
[1724026479311,0.0117742,58600.0,58599.0,3.14470108]
[1724026479515,0.0117742,58600.0,58599.0,3.16170048]
[1724026479925,0.0117742,58600.0,58599.0,3.14770048]
[1724026480131,0.0117742,58600.0,58599.0,3.14470108]
[1724026480345,0.0117742,58600.0,58599.0,3.14770048]
[1724026480966,0.0117742,58600.0,58599.0,2.93678948]
[1724026481170,0.0117742,58600.0,58599.0,3.12748948]
[1724026481590,0.0117742,58600.0,58599.0,3.14148948]
[1724026481796,0.0117742,58600.0,58599.0,3.13747365]
[1724026482207,0.0117742,58600.0,58599.0,3.12347365]
[1724026482415,0.0117742,58600.0,58599.0,3.13747365]
[1724026482804,0.5734742,58600.0,58599.0,0.38235017]
[1724026483054,0.5734742,58600.0,58599.0,0.597277]
[1724026483270,0.5734742,58600.0,58599.0,0.625277]
[1724026483681,0.0125942,58600.0,58599.0,0.611277]
[1724026483891,0.0125942,58600.0,58599.0,1.054888]
[1724026484098,0.0125942,58600.0,58599.0,1.154888]
[1724026484306,0.0125942,58600.0,58599.0,1.32644254]
[1724026484485,0.0125942,58600.0,58599.0,1.34044254]
[1724026484918,0.0125942,58600.0,58599.0,1.59135294]
[1724026485121,0.0125942,58600.0,58599.0,1.60235354]
[1724026485327,0.0125942,58600.0,58599.0,1.58835354]
[1724026485744,0.0125942,58600.0,58599.0,1.60235354]
[1724026485955,0.0125942,58600.0,58599.0,2.86644194]
[1724026486160,0.3964942,58600.0,58599.0,2.654888]
[1724026486363,0.3964942,58600.0,58599.0,2.62174254]
[1724026486793,0.3964942,58600.0,58599.0,2.63574254]
[1724026487207,0.5834942,58600.0,58599.0,2.464188]
[1724026488045,0.5834942,58600.0,58599.0,2.84344194]
[1724026488645,0.5834942,58600.0,58599.0,2.84044254]
[1724026489081,0.119411,58621.0,58599.0,2.84044254]
[1724026489082,0.005,58633.0,58629.0,0.835761]
[1724026489286,0.09515067,58659.0,58657.0,0.239675]
[1724026489496,0.16911374,58679.0,58675.0,0.001]
[1724026489497,0.10024855,58676.0,58675.0,0.001]
[1724026489707,0.16916943,58698.0,58692.0,0.239533]
[1724026489914,0.0117742,58719.0,58709.0,0.001]